bitfinex/quotes_ETHUSD_20240927
["timestamp","ask_amount","ask_price","bid_price","bid_amount"]
[1727448079587,1.6013,2688.6,2687.7,3.72064]
[1727448079727,1.6013,2688.6,2687.8,3.72039]
[1727448081374,1.6013,2688.6,2687.3,1.6133]
[1727448081375,1.6013,2688.6,2687.4,0.55]
[1727448081556,1.6013,2688.6,2688.1,3.72002]
[1727448081866,1.6013,2688.6,2688.2,3.71994]
[1727448082235,1.6013,2688.6,2688.0,3.72023]
[1727448082428,1.6013,2688.6,2688.2,3.71994]
[1727448082785,1.6013,2688.6,2688.0,3.72013]
[1727448082941,1.6013,2688.6,2687.5,3.72083]
[1727448082942,1.6013,2688.6,2687.4,0.55]
[1727448083267,1.6013,2688.6,2688.1,3.72005]
[1727448083566,1.6013,2688.6,2687.8,3.72049]
[1727448083935,0.46013,2688.5,2687.9,3.72036]
[1727448084130,1.6013,2688.6,2687.9,3.72036]
[1727448084631,1.6013,2688.6,2688.0,3.72018]
[1727448084827,1.6013,2688.6,2687.9,3.72036]
[1727448085254,1.6013,2688.6,2688.1,3.72007]
[1727448086344,1.83797898,2688.6,2688.3,3.71981]
[1727448086554,1.6013,2688.6,2688.4,3.71966]
[1727448086762,1.14823465,2688.9,2688.3,3.71981]
[1727448086763,1.5516,2688.9,2688.3,3.71981]
[1727448086962,1.5516,2688.9,2688.5,3.71952]
[1727448087131,1.82158347,2688.9,2688.3,3.71981]
[1727448087326,1.82158347,2688.9,2688.4,3.71967]
[1727448088666,1.82158347,2688.9,2688.5,3.71952]
[1727448088871,0.76548976,2689.1,2688.8,3.71913]
[1727448089081,2.65943465,2689.2,2688.5,1.6236]
[1727448089082,1.5112,2689.2,2688.5,1.6236]
[1727448089292,1.5112,2689.2,2689.1,3.71871]
[1727448089571,2.36668976,2689.5,2689.1,3.71871]
[1727448089876,2.7181822,2689.5,2688.7,3.71922]
[1727448090038,0.76548976,2689.4,2688.7,7.4384]
[1727448090233,0.76548976,2689.4,2688.7,3.71918]
[1727448090470,0.76548976,2689.3,2688.7,3.71918]
[1727448090790,1.52395445,2689.3,2688.7,7.43835]
[1727448090995,0.75846469,2689.3,2688.7,3.71917]
[1727448091206,1.5245,2689.1,2688.5,3.71945]
[1727448091354,1.5245,2689.1,2688.6,3.7194]
[1727448091355,0.22899898,2689.0,2688.6,3.7194]
[1727448091762,2.28998976,2689.1,2688.6,3.7194]
[1727448092380,2.28998976,2689.1,2688.6,3.71932]
[1727448092758,2.28998976,2689.1,2688.6,3.494689]
[1727448093411,2.28998976,2689.1,2688.4,3.71957]
[1727448093576,0.76548976,2688.9,2688.4,3.71967]
[1727448093774,0.09298779,2688.8,2688.4,3.71967]
[1727448094083,0.76548976,2688.9,2688.4,3.71967]
[1727448094308,0.76548976,2688.9,2688.4,3.7196]
[1727448094523,0.76548976,2688.9,2688.6,3.7194]
[1727448094688,0.76548976,2688.9,2688.5,3.71941]
[1727448094881,0.76548976,2688.9,2688.6,3.71931]
[1727448095214,0.76548976,2689.0,2688.8,3.71911]
[1727448095439,2.28998976,2689.1,2688.9,3.71887]
[1727448095629,0.76548976,2689.0,2688.8,7.4381]
[1727448095918,2.28998976,2689.1,2688.8,3.71904]
[1727448096089,2.28998976,2689.1,2688.8,7.43809]
[1727448096284,2.28998976,2689.1,2688.8,3.71904]
[1727448096487,2.28998976,2689.1,2688.7,3.71926]
[1727448096674,2.28998976,2689.1,2688.8,3.7191]
[1727448096877,2.28998976,2689.1,2688.6,3.71927]
[1727448097091,2.28998976,2689.1,2688.7,3.71926]
[1727448097287,2.28998976,2689.1,2688.7,3.71916]
[1727448097517,0.76548976,2689.0,2688.7,3.71926]
[1727448098375,0.76548976,2689.0,2688.7,3.71917]
[1727448099393,0.76548976,2689.0,2688.6,3.7194]
[1727448100410,0.76548976,2689.0,2688.5,3.71944]
[1727448100594,0.76548976,2689.0,2688.0,1.5023]
[1727448100595,6.14614976,2688.8,2688.2,3.71993]
[1727448100923,0.76548976,2688.6,2688.0,3.72014]
[1727448101116,0.85849033,2688.5,2688.0,3.72014]
[1727448101681,0.85849033,2688.5,2687.8,3.72041]
[1727448102029,0.85849033,2688.5,2687.9,3.72036]
[1727448102322,0.76548976,2688.4,2688.0,3.72022]
[1727448103605,0.76548976,2688.4,2688.0,3.72023]
[1727448104995,0.76548976,2688.5,2688.0,3.72023]
[1727448105201,1.92297567,2688.5,2687.8,3.72042]
[1727448105404,1.92297567,2688.5,2687.5,3.72091]
[1727448105405,3.37262087,2687.9,2687.4,3.72104]
[1727448105632,3.37262087,2687.9,2687.0,1.5436]
[1727448105633,1.72952,2687.8,2687.2,3.72124]
[1727448105833,0.76548976,2687.7,2687.2,3.72124]
[1727448106924,0.76548976,2687.7,2687.2,3.72123]
[1727448108324,2.40198976,2687.8,2687.2,3.72123]
[1727448108661,0.76548976,2687.7,2687.1,3.72144]
[1727448108865,2.40198976,2687.8,2687.1,3.72144]
[1727448109392,1.6365,2687.8,2687.2,3.72134]
[1727448109759,1.6365,2687.8,2687.0,5.26511]
[1727448109948,1.6365,2687.8,2687.0,8.98662]
[1727448110264,1.6365,2687.8,2687.0,5.26511]
[1727448110696,1.6365,2687.8,2687.1,3.72143]
[1727448112296,1.6365,2687.8,2687.0,5.26518]
[1727448112499,5.96933498,2687.8,2687.0,3.72158]
[1727448112699,6.73482474,2687.8,2687.0,3.72158]
[1727448112922,4.1535486,2687.6,2686.7,1.95237069]
[1727448113207,4.1535486,2687.6,2686.7,0.42217069]
[1727448113208,3.72123,2687.3,2686.7,0.42217069]
[1727448113417,0.76548976,2687.4,2686.7,0.42217069]
[1727448113550,5.1393236,2687.5,2686.7,4.14418069]
[1727448113755,0.76548976,2687.4,2686.7,4.14418069]
[1727448114011,5.1393236,2687.5,2686.7,4.14418069]
[1727448114802,4.37383384,2687.5,2686.7,4.14418069]
[1727448115001,5.1393236,2687.5,2686.7,4.14418069]
[1727448115300,4.37383384,2687.5,2686.7,4.14418069]
[1727448115595,0.67484236,2687.4,2686.7,0.42217069]
[1727448115799,0.67484236,2687.4,2686.7,4.14413069]
[1727448115952,0.67484236,2687.4,2686.8,3.72188]
[1727448116151,4.39595236,2687.4,2686.7,4.14413069]
[1727448116388,4.39595236,2687.4,2686.7,4.14412069]
[1727448116601,0.67484236,2687.4,2686.7,4.14412069]
[1727448116805,1.554,2687.3,2686.7,7.86605069]
[1727448116970,1.554,2687.3,2686.7,4.14410069]
[1727448117169,1.554,2687.3,2686.9,3.72173]
[1727448117567,1.5679,2687.6,2687.0,3.72154]
[1727448118174,1.5679,2687.6,2687.2,3.72131]
[1727448118372,1.5679,2687.6,2687.2,3.72126]
[1727448118801,1.5679,2687.6,2687.0,5.34134]
[1727448119097,1.5679,2687.6,2687.0,7.44308]
[1727448119599,1.5679,2687.6,2687.0,3.72154]
[1727448120160,1.5679,2687.6,2687.2,3.72133]
[1727448120401,1.5679,2687.6,2687.2,3.72127]
[1727448120601,1.5953,2688.0,2687.4,3.72099]
[1727448121273,5.31562,2688.0,2687.3,3.72113]
[1727448121656,3.72047,2687.9,2687.2,3.72133]
[1727448121884,3.72045,2687.9,2687.2,3.72134]
[1727448122087,2.57542098,2688.0,2687.4,3.72099]
[1727448122288,1.5953,2688.0,2687.3,3.49555]
[1727448122487,5.31555,2688.0,2687.3,3.49555]
[1727448122698,3.72048,2687.9,2687.1,3.72135]
[1727448122863,3.72073,2687.7,2687.0,23.1415]
[1727448123063,7.44147,2687.7,2687.0,19.42]
[1727448123261,3.72087,2687.6,2687.0,19.42]
[1727448123508,3.72066,2687.7,2687.0,23.14155]
[1727448123691,3.72066,2687.7,2687.0,19.42]
[1727448123896,0.98018998,2687.7,2687.0,19.42]
[1727448124205,4.70083998,2687.7,2687.0,23.1415]
[1727448124577,4.70083998,2687.7,2687.0,19.42]
[1727448124777,3.7208,2687.6,2687.0,19.42]
[1727448125121,3.7208,2687.6,2686.9,7.4433]
[1727448125324,4.70083998,2687.7,2686.9,3.72164]
[1727448125520,0.70616297,2687.6,2687.0,3.7216]
[1727448125691,2.36078976,2687.8,2687.3,3.72119]
[1727448125891,1.5953,2687.8,2687.5,3.72085]
[1727448126097,1.5953,2687.8,2687.3,3.72107]
[1727448126293,1.5953,2687.8,2687.4,3.72097]
[1727448126785,1.5953,2687.8,2687.3,3.72107]
[1727448126991,1.5953,2687.8,2687.5,3.72092]
[1727448127187,1.5953,2687.8,2687.2,3.72123]
[1727448127417,3.72065,2687.7,2687.1,3.72143]
[1727448127587,5.50076872,2687.8,2687.1,3.7214]
[1727448127920,3.72071,2687.7,2687.1,3.7214]
[1727448128090,3.37389272,2687.5,2686.7,4.14412069]
[1727448128295,1.6641,2687.4,2686.9,3.72176]
[1727448128822,1.5808,2687.7,2687.0,3.72154]
[1727448129125,1.5808,2687.7,2686.8,1.625]
[1727448129126,3.72094,2687.5,2686.8,3.72179]
[1727448129332,1.5808,2687.4,2686.8,3.72179]
[1727448129629,1.5808,2687.4,2686.8,7.44361]
[1727448130081,5.30188,2687.4,2686.7,0.42217069]
[1727448130276,1.23967227,2687.3,2686.7,0.42217069]
[1727448130506,1.23967227,2687.3,2686.8,3.72188]
[1727448130701,1.5808,2687.4,2686.8,3.72188]
[1727448131113,1.5808,2687.4,2686.7,4.14420069]
[1727448131114,5.30187,2687.4,2686.7,4.14420069]
[1727448131312,5.02029272,2686.8,2686.7,0.42217069]
[1727448131914,1.6464,2686.8,2686.7,0.42217069]
[1727448132113,1.6464,2687.1,2686.7,0.42217069]
[1727448132514,1.6464,2687.1,2686.7,4.14412069]
[1727448132826,1.6464,2687.1,2686.7,0.42217069]
[1727448133025,1.6464,2687.1,2686.7,4.14418069]
[1727448133193,1.6464,2687.1,2686.7,4.14419069]
[1727448133709,1.6464,2687.1,2686.7,0.42217069]
[1727448134025,3.37389272,2687.0,2686.7,0.42217069]
[1727448135001,7.09552272,2687.0,2686.7,0.42217069]
[1727448135354,1.6464,2687.1,2686.7,0.42217069]
[1727448136230,7.09558272,2687.0,2686.7,0.42217069]
[1727448136403,3.37389272,2687.0,2686.7,0.42217069]
[1727448136800,7.09551272,2687.0,2686.7,0.42217069]
[1727448137036,8.34184799,2687.0,2686.7,0.42217069]
[1727448137640,3.37389272,2687.0,2686.7,0.42217069]
[1727448137846,5.36789,2687.1,2686.7,0.42217069]
[1727448138351,1.6464,2687.1,2686.7,0.42217069]
[1727448138542,1.6464,2687.1,2686.9,3.72176]
[1727448138942,1.6464,2687.1,2686.7,0.42217069]
[1727448139149,1.6464,2687.1,2686.8,3.72186]
[1727448139332,8.36668,2687.4,2686.7,4.14409069]
[1727448139532,11.74057272,2687.4,2686.8,3.72186]
[1727448139941,1.6456,2687.4,2686.8,1.5788]
[1727448140145,4.90487225,2687.7,2687.6,3.72079]
[1727448140146,1.6456,2687.7,2687.6,3.72079]
[1727448140314,0.76548976,2687.9,2687.3,3.72112]
[1727448140315,1.6456,2687.9,2687.3,3.72112]
[1727448140508,1.6456,2687.9,2687.3,3.72113]
[1727448140719,1.6456,2687.9,2687.4,3.72098]
[1727448140921,1.6456,2687.9,2687.5,3.7209]
[1727448141411,1.6456,2687.9,2687.5,3.72083]
[1727448141951,1.5617,2688.2,2687.6,3.72065]
[1727448142173,1.5617,2688.2,2687.0,4.6495]
[1727448142174,7.09449272,2687.8,2687.0,4.6495]
[1727448142446,7.09449272,2687.8,2687.0,1.6495]
[1727448142447,3.37389272,2687.5,2687.0,1.6495]
[1727448142651,3.37389272,2687.5,2686.8,3.72181]
[1727448142953,3.37389272,2687.5,2686.9,3.72172]
[1727448143152,7.96985488,2687.5,2686.8,3.72179]
[1727448143454,8.67071272,2687.2,2686.7,0.42217069]
[1727448143621,4.94929272,2687.2,2686.7,0.42217069]
[1727448143952,8.67068272,2687.2,2686.7,0.42217069]
[1727448144155,6.37985443,2687.2,2686.7,0.42217069]
[1727448144336,3.77145147,2687.2,2686.7,0.42217069]
[1727448144651,7.49289147,2687.2,2686.7,0.42217069]
[1727448145021,3.72157,2687.1,2686.7,0.42217069]
[1727448145354,4.58010777,2687.1,2686.7,0.42217069]
[1727448145561,5.73261817,2687.1,2686.7,0.42217069]
[1727448146313,0.76548976,2687.0,2686.7,0.42217069]
[1727448146504,0.76548976,2687.1,2686.7,0.42217069]
[1727448148656,3.72178,2686.9,2686.7,0.42217069]
[1727448148994,6.00587976,2686.8,2686.7,0.42217069]
[1727448149139,2.75918739,2686.8,2686.7,0.42217069]
[1727448149339,3.53840158,2686.8,2686.7,0.42217069]
[1727448149642,3.90742204,2686.8,2686.7,0.42217069]
[1727448149970,4.0004806,2686.8,2686.7,0.42217069]
[1727448150178,7.7223706,2686.8,2686.7,0.42217069]
[1727448151246,6.57413595,2686.8,2686.7,0.42217069]
[1727448151481,7.74365137,2686.8,2686.7,0.42217069]
[1727448151786,7.65059281,2686.8,2686.7,0.42217069]
[1727448152085,3.92870281,2686.8,2686.7,0.42217069]
[1727448152241,7.65059281,2686.8,2686.7,0.42217069]
[1727448152670,3.92870281,2686.8,2686.7,0.42217069]
[1727448152888,1.5185,2686.8,2686.7,0.42217069]
[1727448153067,2.68801542,2686.8,2686.7,0.42217069]
[1727448153273,0.77955935,2686.8,2686.7,2.05297069]
[1727448153456,0.77955935,2687.1,2686.7,2.05297069]
[1727448153645,0.77955935,2687.1,2686.7,5.77497069]
[1727448154006,0.77955935,2687.2,2687.1,3.72148]
[1727448154147,0.77955935,2687.5,2687.3,3.7212]
[1727448154765,0.77955935,2687.6,2687.5,3.72093]
[1727448154991,1.53097953,2687.8,2687.7,3.72065]
[1727448154992,0.77955935,2687.8,2687.7,3.72065]
[1727448155309,3.10447953,2688.0,2687.8,3.72051]
[1727448155310,0.77955935,2688.0,2687.8,3.72051]
[1727448155514,2.74301542,2688.2,2687.8,3.72051]
[1727448155515,0.77955935,2688.1,2687.8,3.72051]
[1727448155867,0.77955935,2688.1,2687.7,3.72065]
[1727448156730,0.77955935,2688.1,2687.6,3.72078]
[1727448156862,0.09300795,2688.0,2687.5,3.495443]
[1727448157066,0.77955935,2688.0,2687.6,3.72067]
[1727448157297,4.49980935,2688.0,2687.4,3.72105]
[1727448157603,4.49980935,2688.0,2687.3,5.23001]
[1727448157805,0.77955935,2687.9,2687.3,5.23001]
[1727448158306,0.77955935,2688.0,2687.6,3.7207]
[1727448158518,0.77955935,2688.1,2687.6,3.7207]
[1727448158666,0.77955935,2688.1,2687.6,3.630492]
[1727448159025,0.77955935,2688.1,2687.8,3.7205]
[1727448159159,0.77955935,2688.1,2687.8,3.72042]
[1727448159608,0.77955935,2688.2,2687.8,3.72042]
[1727448159788,0.77955935,2688.3,2688.0,3.72013]
[1727448159997,0.77955935,2688.4,2687.9,1.6253]
[1727448160192,4.49925935,2688.4,2687.7,3.7206]
[1727448160807,0.77955935,2688.4,2687.8,3.72042]
[1727448161106,6.40174542,2688.5,2687.9,3.72026]
[1727448161107,2.29215935,2688.5,2687.9,3.72026]
[1727448161314,0.77955935,2688.4,2687.9,3.72032]
[1727448161602,2.29215935,2688.5,2687.6,5.34605]
[1727448161809,1.5126,2688.5,2688.0,3.72018]
[1727448162110,2.53070748,2688.5,2687.9,3.72032]
[1727448162410,2.53070748,2688.5,2687.9,3.72031]
[1727448162766,0.77955935,2688.7,2688.2,3.71986]
[1727448163008,2.39455935,2688.8,2688.3,3.71975]
[1727448163503,1.615,2688.8,2688.2,3.71986]
[1727448163802,2.39455935,2688.8,2688.2,3.71986]
[1727448164012,2.39455935,2688.8,2688.0,3.7202]
[1727448164013,5.33421,2688.8,2688.0,3.7202]
[1727448164312,5.33421,2688.8,2687.6,24.76601]
[1727448164313,0.77955935,2688.7,2687.7,3.7206]
[1727448164511,1.5169,2688.3,2687.7,7.44112]
[1727448164713,1.5169,2688.3,2687.7,3.72055]
[1727448164714,5.23683,2688.3,2687.7,3.72055]
[1727448165007,6.21043894,2688.3,2687.7,3.72055]
[1727448165308,6.21040894,2688.3,2687.7,3.72055]
[1727448165467,2.49050894,2688.3,2687.7,3.72055]
[1727448165666,2.49050894,2688.3,2687.6,21.0453]
[1727448165870,2.49050894,2688.3,2687.8,3.72049]
[1727448166582,0.62102089,2688.2,2687.8,3.72049]
[1727448168004,0.62102089,2688.2,2687.6,5.34605]
[1727448168207,0.62102089,2688.2,2687.7,3.72064]
[1727448168411,0.62102089,2688.2,2687.6,3.72075]
[1727448168412,0.62102089,2688.2,2687.8,3.7205]
[1727448168769,1.5169,2688.3,2687.8,3.7205]
[1727448168972,1.5169,2688.3,2688.0,3.72021]
[1727448169427,1.5169,2688.3,2687.8,3.7205]
[1727448170283,1.5169,2688.3,2687.8,3.72044]
[1727448171127,1.5169,2688.3,2687.6,3.7207]
[1727448171128,1.60990781,2688.3,2687.6,3.7207]
[1727448171423,3.71997,2688.2,2687.4,3.72096]
[1727448171592,3.72025,2688.0,2687.4,7.44195]
[1727448171921,3.72079,2687.6,2686.7,21.43217069]
[1727448172127,4.18607384,2687.5,2686.9,3.72166]
[1727448172427,3.72076,2687.7,2686.7,2.01217069]
[1727448172428,3.72131,2687.3,2686.7,0.42217069]
[1727448172736,3.72149,2687.1,2686.7,0.42217069]
[1727448172882,1.6294,2686.9,2686.7,0.42217069]
[1727448173495,5.35116,2686.9,2686.7,0.42217069]
[1727448173896,1.6294,2686.9,2686.7,0.42217069]
[1727448174919,1.6294,2686.9,2686.7,0.42217069]
[1727448176086,5.35124,2686.9,2686.7,0.42217069]
[1727448176840,5.35124,2686.9,2686.7,0.28697169]
[1727448177121,0.57326938,2686.8,2686.7,0.28697169]
[1727448178484,0.66632951,2686.8,2686.7,0.28697169]
[1727448178688,4.38821951,2686.8,2686.7,0.28697169]
[1727448179196,4.29515938,2686.8,2686.7,0.28697169]
[1727448179398,5.91795938,2686.8,2686.7,0.28697169]
[1727448181291,9.69751873,2686.8,2686.7,0.28697169]
[1727448182533,2.19606938,2686.8,2686.7,0.28697169]
[1727448182739,5.91795938,2686.8,2686.7,0.28697169]
[1727448184143,2.19606938,2686.8,2686.7,0.28697169]
[1727448184294,1.6228,2686.8,2686.7,0.28697169]
[1727448184523,7.44346,2687.0,2686.7,0.28697169]
[1727448184822,3.72172,2687.0,2686.7,0.28697169]
[1727448185247,3.72189,2686.8,2686.7,0.28697169]
[1727448186025,4.466255,2686.8,2686.7,0.28697169]
[1727448187172,5.986255,2686.8,2686.7,0.28697169]
[1727448190563,8.986255,2686.8,2686.7,0.28697169]
[1727448190870,9.76581435,2686.8,2686.7,0.28697169]
[1727448191041,8.986255,2686.8,2686.7,0.28697169]
[1727448191236,10.70577042,2686.8,2686.7,0.28697169]
[1727448191567,10.70577042,2686.8,2685.8,0.49332096]
[1727448191568,3.72314,2685.9,2685.8,0.49332096]
[1727448192192,5.30314,2685.9,2685.8,0.49332096]
[1727448193785,3.72314,2685.9,2685.8,0.49332096]
[1727448194693,7.10224297,2686.0,2685.8,0.49332096]
[1727448194894,3.72302,2686.0,2685.8,0.49332096]
[1727448195194,3.72295,2686.1,2685.8,0.49332096]
[1727448195493,8.64942297,2686.2,2685.8,0.49332096]
[1727448196389,3.72314,2686.0,2685.8,0.49332096]
[1727448196693,3.72314,2685.9,2685.8,0.49332096]
[1727448199585,2.4123423,2686.2,2685.8,0.49332096]
[1727448199586,3.72282,2686.2,2685.8,0.49332096]
[1727448199767,3.7231,2686.0,2685.8,0.49332096]
[1727448199970,7.10209297,2686.1,2685.8,0.49332096]
[1727448200204,3.72287,2686.1,2685.8,0.49332096]
[1727448200383,3.72274,2686.2,2685.8,0.49332096]
[1727448200588,7.10209297,2686.1,2685.8,0.49332096]
[1727448200771,3.72273,2686.2,2685.8,0.49332096]
[1727448201096,3.37922297,2686.1,2685.8,0.49332096]
[1727448201314,3.72314,2685.9,2685.8,0.49332096]
[1727448201967,7.10236297,2685.9,2685.8,0.49332096]
[1727448202673,7.10236297,2685.9,2685.8,0.26749396]
[1727448203608,8.76936142,2685.9,2685.8,0.26749396]
[1727448203918,8.67626297,2685.9,2685.8,0.26749396]
[1727448204081,12.91618927,2685.9,2685.8,0.26749396]
[1727448204280,13.69820772,2685.9,2685.8,0.26749396]
[1727448206571,5.29704,2685.9,2685.8,0.26749396]
[1727448206775,3.72314,2685.9,2685.8,0.26749396]
[1727448207370,3.723,2686.0,2685.8,0.26749396]
[1727448207815,3.72314,2685.9,2685.8,0.26749396]
[1727448208043,7.88438142,2685.9,2685.8,0.26749396]
[1727448208480,3.72314,2685.9,2685.8,0.26749396]
[1727448210213,5.77254142,2686.5,2685.8,0.26749396]
[1727448210422,3.72274,2686.2,2685.8,0.26749396]
[1727448210623,3.7225,2686.4,2685.8,0.26749396]
[1727448210921,3.72273,2686.2,2685.8,0.26749396]
[1727448211128,7.44506,2686.4,2685.8,0.26749396]
[1727448211425,7.44505,2686.4,2685.9,1.5751]
[1727448211626,9.51938142,2686.8,2685.9,1.5751]
[1727448211627,4.16124142,2686.5,2685.9,1.5751]
[1727448211791,3.72314,2685.9,2685.8,0.26749396]
[1727448213779,3.81623158,2685.9,2685.8,0.26749396]
[1727448214493,9.48058142,2685.9,2685.8,0.26749396]
[1727448215288,7.88438142,2685.9,2685.8,0.26749396]
[1727448215493,3.72314,2685.9,2685.8,0.26749396]
[1727448216231,4.617904,2685.9,2685.8,0.26749396]
[1727448218347,5.39401493,2685.9,2685.8,0.26749396]
[1727448219040,3.72314,2685.9,2685.8,0.26749396]
[1727448219441,8.66045235,2686.0,2685.8,0.26749396]
[1727448219645,3.72314,2685.9,2685.8,0.26749396]
[1727448220015,7.88434142,2686.0,2685.8,0.26749396]
[1727448220016,7.88433142,2686.0,2685.8,0.26749396]
[1727448220263,3.72314,2685.9,2685.8,0.26749396]
[1727448220429,4.49899093,2686.1,2685.8,0.26749396]
[1727448220632,4.49899093,2686.1,2685.9,1.5664]
[1727448220633,3.72309,2686.0,2685.9,1.5664]
[1727448221731,0.77611093,2686.0,2685.9,1.5664]
[1727448221938,3.72275,2686.2,2685.9,1.5664]
[1727448222520,0.77611093,2686.4,2685.9,1.5664]
[1727448222865,3.7226,2686.3,2685.9,1.5664]
[1727448223161,3.72286,2686.2,2685.9,1.5664]
[1727448223479,0.77611093,2686.4,2686.0,3.72292]
[1727448223622,0.77611093,2686.5,2686.0,3.72292]
[1727448223818,4.49831093,2686.6,2686.2,1.6663]
[1727448224050,0.77611093,2686.6,2686.2,1.576152]
[1727448224419,0.77611093,2686.5,2686.3,7.44498]
[1727448224613,0.77611093,2686.5,2686.4,3.72234]
[1727448224875,1.16416639,2686.7,2686.3,3.72249]
[1727448224876,0.77611093,2686.6,2686.5,3.72231]
[1727448225083,0.77611093,2686.6,2686.3,3.72249]
[1727448225357,0.77611093,2686.6,2686.4,3.72233]
[1727448225567,0.77611093,2686.6,2686.5,3.72231]
[1727448225920,4.15669414,2686.7,2686.6,3.72217]
[1727448226220,0.77927214,2686.7,2686.5,3.72231]
[1727448226417,4.15669414,2686.7,2686.3,3.72246]
[1727448226860,4.15669414,2686.7,2686.5,3.72221]
[1727448227067,0.77927214,2686.8,2686.7,3.72203]
[1727448227418,1.16416639,2687.0,2686.6,5.23797]
[1727448227419,4.15669414,2686.9,2686.6,5.23797]
[1727448227619,4.15669414,2686.9,2686.6,5.23787]
[1727448227860,4.15669414,2686.9,2686.7,3.72192]
[1727448228031,0.77927214,2686.9,2686.6,5.23787]
[1727448228225,0.77927214,2686.9,2686.6,1.5158]
[1727448228226,4.15669414,2686.9,2686.6,1.5158]
[1727448228427,4.15669414,2686.9,2686.6,5.23791]
[1727448228620,3.377422,2686.9,2686.6,5.23791]
[1727448228819,3.377422,2686.9,2686.7,3.72201]
[1727448229026,4.15669414,2686.9,2686.6,5.23791]
[1727448229249,4.15669414,2686.9,2686.6,1.5158]
[1727448230057,7.099452,2686.7,2686.3,1.5121]
[1727448230238,3.377422,2686.5,2686.3,1.5121]
[1727448230639,4.59457325,2686.6,2686.3,1.5121]
[1727448231288,0.87233464,2686.6,2686.3,1.5121]
[1727448231504,3.47048375,2686.5,2686.0,1.623]
[1727448231695,4.15686184,2686.4,2686.0,1.623]
[1727448231984,7.100012,2686.3,2685.9,3.72306]
[1727448232166,3.72259,2686.3,2685.9,3.72306]
[1727448232477,0.77927214,2686.3,2685.9,3.72306]
[1727448234057,4.50195214,2686.3,2685.8,5.57440396]
[1727448234268,4.50195214,2686.3,2685.8,9.29760396]
[1727448234585,4.50195214,2686.3,2685.8,0.26749396]
[1727448234586,3.377422,2686.1,2685.8,0.26749396]
[1727448234748,4.50206214,2686.2,2685.8,0.26749396]
[1727448235141,0.77927214,2686.1,2685.8,0.26749396]
[1727448235573,0.77927214,2686.1,2685.8,3.99075396]
[1727448236278,0.77927214,2686.2,2685.8,3.99067396]
[1727448236583,0.77927214,2686.2,2685.9,3.72314]
[1727448237442,0.77927214,2686.2,2685.9,3.72302]
[1727448238191,0.77927214,2686.2,2685.8,0.26749396]
[1727448238192,3.723,2686.0,2685.8,0.26749396]
[1727448238362,7.88006448,2685.9,2685.8,0.26749396]
[1727448238684,8.26472839,2685.9,2685.8,0.26749396]
[1727448239242,7.100562,2685.9,2685.8,0.26749396]
[1727448239486,5.20960008,2685.9,2685.8,0.26749396]
[1727448239771,4.82495924,2685.9,2685.8,0.26749396]
[1727448240359,4.15694755,2685.9,2685.8,0.26749396]
[1727448240568,0.77952555,2685.9,2685.8,0.26749396]
[1727448241177,3.72294,2686.1,2685.8,3.99077396]
[1727448241178,0.77952555,2686.1,2685.8,3.99077396]
[1727448241389,1.16416639,2686.3,2686.0,3.723]
[1727448241390,0.77952555,2686.3,2686.0,3.723]
[1727448241750,0.77952555,2686.2,2686.0,3.723]
[1727448242098,0.77952555,2686.3,2686.2,3.72273]
[1727448242395,0.77952555,2686.4,2686.3,3.72259]
[1727448242548,0.77952555,2686.6,2686.5,3.72231]
[1727448242747,0.77952555,2686.8,2686.6,3.72217]
[1727448242946,0.77952555,2686.9,2686.6,7.44434]
[1727448243245,0.77952555,2686.9,2686.5,3.72231]
[1727448243443,0.77952555,2686.8,2686.6,3.72217]
[1727448243890,0.77952555,2686.8,2686.5,3.72231]
[1727448244244,0.87258075,2686.8,2686.4,1.5824]
[1727448244560,4.15694755,2686.7,2686.4,1.5824]
[1727448244783,0.77952555,2686.8,2686.6,3.72217]
[1727448245013,0.77952555,2686.8,2686.7,3.72203]
[1727448245208,0.77952555,2686.9,2686.7,3.72203]
[1727448245562,0.77952555,2686.9,2686.7,3.72193]
[1727448245828,0.77952555,2687.0,2686.8,7.44371]
[1727448245972,0.77952555,2687.0,2686.8,3.72189]
[1727448246309,0.77952555,2687.1,2686.8,3.72181]
[1727448246465,0.77952555,2687.0,2686.8,3.72181]
[1727448246667,1.16416639,2687.2,2686.8,3.72181]
[1727448246668,0.77952555,2687.2,2686.9,3.72173]
[1727448246872,0.77952555,2687.2,2686.8,7.44362]
[1727448247069,0.77952555,2687.3,2687.0,3.72152]
[1727448247582,4.50045555,2687.5,2687.0,3.72152]
[1727448247819,0.77952555,2687.5,2687.1,3.72139]
[1727448248021,0.77952555,2687.7,2687.4,5.35556]
[1727448248316,0.77952555,2688.1,2687.7,1.6345]
[1727448248623,0.77952555,2688.7,2688.4,3.71968]
[1727448248804,0.77952555,2688.9,2687.9,6.72033]
[1727448249115,3.05077953,2689.2,2687.9,6.72033]
[1727448249116,0.77952555,2689.2,2688.8,5.35164]
[1727448249318,7.095802,2689.4,2688.8,1.6326]
[1727448249468,1.43889839,2689.4,2688.9,3.71891]
[1727448249822,1.43889839,2689.4,2688.8,1.6326]
[1727448249823,5.15729839,2689.4,2688.8,1.6326]
[1727448250121,3.71782,2689.8,2689.2,3.71849]
[1727448250327,3.7177,2689.9,2689.2,3.71856]
[1727448250619,0.6281471,2689.8,2689.2,3.71856]
[1727448250928,4.3459771,2689.8,2689.1,3.71858]
[1727448251083,0.43459771,2689.7,2689.1,3.71858]
[1727448251494,0.43459771,2689.7,2689.2,3.71845]
[1727448252185,0.6281471,2689.8,2689.3,3.71843]
[1727448252364,0.6281471,2689.8,2689.4,3.71827]
[1727448252595,0.6281471,2689.8,2689.4,1.5517]
[1727448252828,3.71736,2690.1,2689.4,1.5517]
[1727448252977,3.71736,2690.1,2689.4,5.2699]
[1727448253311,1.52,2690.2,2689.6,3.71797]
[1727448253618,3.71692,2690.4,2689.4,5.26996]
[1727448253619,3.71697,2690.4,2689.4,5.26991]
[1727448253770,3.71729,2690.2,2689.6,3.718]
[1727448254113,4.460716,2690.2,2689.6,3.718]
[1727448254319,3.71771,2689.9,2689.1,3.71859]
[1727448254528,3.71771,2689.9,2689.1,5.29749]
[1727448254670,3.71804,2689.6,2689.1,1.5789]
[1727448254870,3.71798,2689.7,2689.1,1.5789]